Cogmind - Beta 13 @@@ ROGUE MODE // 2024.04.07 @ 21:24:35 Player: Jraekeid Result: Destroyed by DH-7T2(h) with Bore Cannon Performance ------------- Evolutions (0) 0 Regions Visited (3) 600 Robots Destroyed (28) 140 Value Destroyed (597) 597 Prototype IDs (2) 40 Alien Tech Used (0) 0 Bonus (0) 0 TOTAL SCORE: 1377 Bonus ------- None Cogmind --------- Core Integrity 0/250 Matter 297/300 Energy 100/100 System Corruption 0% Temperature Cool (0) Movement Rolling (110) Ox2 Location -10/Subcaves Parts ------- > --- POWER (1) -------- (None) > --- PROPULSION (2) --- Wheel Wheel > --- UTILITY (2) ------ High-capacity Storage Unit > --- WEAPON (2) ------- Light Cannon Light Cannon > --- INVENTORY (20) --- Light Ion Engine Light Ion Engine Light Nuclear Core Wheel Flight Unit Flight Unit Flight Unit Flight Unit Flight Unit Improved Heat Sink Medium Storage Unit Medium Matter Pod (100) Compact Matter Pod (150) Compact Matter Pod (150) Propulsion Shielding Light Armor Plating Light Cannon Plasma Flamer Hammer Peak State ------------ > --- POWER ------------ (None) > --- PROPULSION ------- Wheel Wheel > --- UTILITY ---------- High-capacity Storage Unit Core Shielding > --- WEAPON ----------- Light Cannon Light Cannon > --- INVENTORY -------- Light Ion Engine Light Ion Engine Light Nuclear Core Wheel Flight Unit Flight Unit Flight Unit Flight Unit Flight Unit Improved Heat Sink Medium Storage Unit Medium Matter Pod Compact Matter Pod Compact Matter Pod Propulsion Shielding Light Armor Plating Small Laser Light Cannon Plasma Flamer Hammer [Rating: 9] Favorites ----------- Power Ion Engine Engine Ion Engine Propulsion Wheel Wheel Wheel Utility High-capacity Storage Unit Storage High-capacity Storage Unit Protection Core Shielding Weapon Light Cannon Ballistic Gun Assault Rifle Ballistic Cannon Light Cannon Launcher Grenade Launcher Build | -11 -10 -10 -10 ------- Run | Yrd Mat Min Sub Slots Evolved . | . . . . Power . | . . . . Propulsion . | . . . . Utility . | . . . . Weapon . | . . . . Parts Attached 13 | 6 3 4 . Power 1 | 1 . . . Engine 1 | 1 . . . Core . | . . . . Reactor . | . . . . Propulsion 4 | 2 . 2 . Treads . | . . . . Leg . | . . . . Wheel 4 | 2 . 2 . Hover . | . . . . Flight . | . . . . Utility 3 | 1 2 . . Device . | . . . . Storage 2 | 1 1 . . Processor . | . . . . Hackware . | . . . . Protection 1 | . 1 . . Artifact . | . . . . Weapon 5 | 2 1 2 . Energy Gun . | . . . . Energy Cannon . | . . . . Ballistic Gun 2 | 2 . . . Ballistic Cannon 2 | . . 2 . Launcher 1 | . 1 . . Special Weapon . | . . . . Impact Weapon . | . . . . Slashing Weapon . | . . . . Piercing Weapon . | . . . . Special Melee Weapon . | . . . . Unidentified Prototypes . | . . . . Parts Lost 6 | . . 5 1 Power 1 | . . 1 . Propulsion 2 | . . 2 . Utility 1 | . . . 1 Weapon 2 | . . 2 . Highest Loss Streak 3 | . . 3 1 To Critical Strikes . | . . . . Average Slot Usage (%) 68 | . 89 63 85 Engine 3 | . 14 . . Wheel 12 | . 28 7 28 Storage 14 | . 14 14 14 Protection 13 | . 12 14 14 Ballistic Gun 4 | . 15 2 . Ballistic Cannon 17 | . . 22 28 Launcher 2 | . 3 1 . Naked Turns . | . . . . Heaviest Build 51 | 14 51 51 47 Greatest Support 20 | 20 20 20 20 Greatest Overweight (x) 15 | . 2 15 2 Average Overweight (x) 4 | . 1 5 2 Largest Inventory Capacity 20 | 8 20 20 20 Average Capacity 19 | 6 19 20 20 Most Carried 20 | 5 18 20 20 Average Carried 17 | 1 12 18 19 Final Capacity 20 | 8 20 20 20 Final Carried 20 | 1 18 20 19 Class Distribution -------------------- 100% | Mutant Dominant Class ---------------- Mutant | -10/Materials Mutant | -10/Mines Mutant | -10/Subcaves Resources | -11 -10 -10 -10 ----------- Run | Yrd Mat Min Sub Matter Collected 880 | 241 285 354 . Remotely . | . . . . Salvage Created 683 | . 305 378 . Parts 54 | . 32 22 . Haulers Intercepted 2 | . 2 . . Recyclers Shooed . | . . . . Parts Field Recycled . | . . . . Retrieved Matter . | . . . . Parts Self-Destructed . | . . . . Prevented . | . . . . Kills | -11 -10 -10 -10 ------- Run | Yrd Mat Min Sub Combat Hostiles Destroyed 20 | . 8 12 . Guns 8 | . 6 2 . Cannons 6 | . . 6 . AOE 6 | . 2 4 . Classes Destroyed 6 | . 5 1 . Worker 4 | . 2 2 . Tunneler 1 | . . 1 . Hauler 2 | . 2 . . Watcher 1 | . 1 . . Swarmer 9 | . 6 3 . Grunt 11 | . 2 9 . Best Kill Streak 4 | . 4 4 . Combat Bots Only 4 | . 3 4 . Max Kills in Single Turn 2 | . 2 2 . Gunslinging . | . . . . Exploded 1 | . 1 1 . Melee . | . . . . Uniques/NPCs Destroyed . | . . . . Combat | -11 -10 -10 -10 -------- Run | Yrd Mat Min Sub Hostile Shots Fired 105 | . 40 64 1 Missed 37 | . 15 22 . Damage Taken 787 | . 228 489 70 Core 258 | . 57 175 26 Absorbed by Shields . | . . . . Redirected to Shielding 54 | . 11 37 6 Core Remaining (%) 100 | 100 . . . Volleys Fired 83 | . 31 51 1 Largest 2 | . 2 2 2 Hottest 70 | . 50 70 70 Shots Fired 116 | . 36 78 2 Gun 57 | . 31 26 . Cannon 46 | . . 44 2 Launcher 13 | . 5 8 . Special . | . . . . Kinetic 103 | . 31 70 2 Thermal . | . . . . Explosive 13 | . 5 8 . Electromagnetic . | . . . . Robot Hit Streak 8 | . 5 8 2 Robot Miss Streak 7 | . 6 7 . Penetration Max . | . . . . Secondary Targets . | . . . . Shots Hit Robots 65 | . 15 48 2 Core Hits 41 | . 16 25 . Critical Kills . | . . . . Critical Parts Destroyed . | . . . . Critical Strikes 1 | . . 1 . Blast 1 | . . 1 . Melee Attacks . | . . . . Impact . | . . . . Slashing . | . . . . Piercing . | . . . . Sneak Attacks . | . . . . Combat Hostiles . | . . . . Follow-up Attacks . | . . . . Damage Inflicted 1508 | . 409 1099 . Guns 433 | . 210 223 . Cannons 428 | . . 428 . Explosions 647 | . 199 448 . Melee . | . . . . Ramming . | . . . . Kinetic 861 | . 210 651 . Thermal . | . . . . Explosive 647 | . 199 448 . Electromagnetic . | . . . . Impact . | . . . . Slashing . | . . . . Piercing . | . . . . Highest Corruption . | . . . . Average Corruption . | . . . . Corruption Purged . | . . . . Corruption Blocked . | . . . . Overload Shots . | . . . . Overflow Damage 5 | . . 5 . Projectiles 5 | . . 5 . Explosions . | . . . . Melee . | . . . . Knockbacks 8 | . . 8 . Impact . | . . . . Kinetic 7 | . . 7 . Secondary 1 | . . 1 . Self-Inflicted Damage 53 | . 31 22 . Shots 2 | . 1 1 . Rammed . | . . . . Targets Rammed . | . . . . Kicked . | . . . . Crushed . | . . . . Highest Temperature 24 | . 2 24 . Average Temperature 10 | . 2 10 . Received Heat Transfer 255 | . 12 237 6 Siege Activations . | . . . . Robots Corrupted . | . . . . Combat Hostiles . | . . . . Parts Fried . | . . . . Impact Corruptions . | . . . . Robots Melted . | . . . . Combat Hostiles . | . . . . Parts Melted . | . . . . Heat Transferred . | . . . . Parts Sabotaged . | . . . . Parts Stolen . | . . . . Parts Stripped . | . . . . Power Chain Reactions . | . . . . Alert | -11 -10 -10 -10 ------- Run | Yrd Mat Min Sub Peak Influence 293 | . 189 293 . Initial 42 | . . 42 . Average 88 | . 77 93 . Maximum Alert Level 1 | . . 1 . Low Security (%) 89 | 100 100 86 . Level 1 10 | . . 13 . Level 2 . | . . . . Level 3 . | . . . . Level 4 . | . . . . Level 5 . | . . . . High Security . | . . . . Max Security . | . . . . Squads Dispatched 2 | . 2 . . Investigation 1 | . 1 . . Extermination . | . . . . Reinforcement 1 | . 1 . . Assault . | . . . . Garrison . | . . . . Intercept . | . . . . Searches Triggered . | . . . . Construction Impeded . | . . . . Haulers Reinforced . | . . . . Active Scanning Responses . | . . . . Cargo Convoy Interrupts . | . . . . Stealth | -11 -10 -10 -10 --------- Run | Yrd Mat Min Sub Distress Signals 1 | . 1 . . Communications Jammed . | . . . . Distress Signals . | . . . . Times Spotted 31 | . 11 18 2 Peak Tracking Total 5 | . 3 5 2 Tactical Retreats 8 | . . 8 . Traps | -11 -10 -10 -10 ------- Run | Yrd Mat Min Sub Traps Triggered 2 | . 2 . . Indirectly . | . . . . Trap Hack Attempts . | . . . . Triggered . | . . . . Disarmed . | . . . . Reprogrammed . | . . . . Reused . | . . . . Traps Extracted . | . . . . Installed . | . . . . Triggered . | . . . . Machines | -11 -10 -10 -10 ---------- Run | Yrd Mat Min Sub Machines Disabled 5 | . 3 2 . Max in Single Turn 2 | . 2 1 . Machines Repaired . | . . . . Machines Dismantled . | . . . . Machines Sabotaged . | . . . . Overloaded Fab Kills . | . . . . Hacking | -11 -10 -10 -10 --------- Run | Yrd Mat Min Sub Machines Accessed 3 | . 3 . . Terminals 2 | . 2 . . Fabricators . | . . . . Repair Stations . | . . . . Recycling Units 1 | . 1 . . Scanalyzers . | . . . . Garrison Access . | . . . . Total Hacks 7 | . 7 . . Successful 4 | . 4 . . Failed 3 | . 3 . . Catastrophic . | . . . . Database Lockouts . | . . . . Manual . | . . . . Terminals 6 | . 6 . . Fabricators . | . . . . Repair Stations . | . . . . Recycling Units 1 | . 1 . . Scanalyzers . | . . . . Garrison Access . | . . . . Terminal Hacks 3 | . 3 . . Prototype ID Bank 1 | . 1 . . Branch Access Points 1 | . 1 . . Emergency Access Points 1 | . 1 . . Fabricator Hacks . | . . . . Repair Station Hacks . | . . . . Recycling Unit Hacks 1 | . 1 . . Retrieve Components 1 | . 1 . . Scanalyzer . | . . . . Garrison Access Hacks . | . . . . Unauthorized Hacks . | . . . . Terminals . | . . . . Fabricators . | . . . . Repair Stations . | . . . . Recycling Units . | . . . . Scanalyzers . | . . . . Garrison Access . | . . . . Data Cores Recovered . | . . . . Used . | . . . . Hacking Detections 2 | . 2 . . Full Trace Events . | . . . . Feedback Events . | . . . . Feedback Blocked . | . . . . Robot Schematics Acquired . | . . . . Robots Built . | . . . . Authchips . | . . . . Time . | . . . . Total Robot Build Rating . | . . . . Part Schematics Acquired . | . . . . Parts Built . | . . . . Authchips . | . . . . Time . | . . . . Total Part Build Rating . | . . . . Parts Repaired . | . . . . Time . | . . . . Parts Recycled . | . . . . Recycled Matter . | . . . . Retrieved Matter . | . . . . Retrieved Components 5 | . 5 . . Parts Scanalyzed . | . . . . Part Schematics Acquired . | . . . . Parts Damaged . | . . . . Bothacking | -11 -10 -10 -10 ------------ Run | Yrd Mat Min Sub Used RIF Installer . | . . . . Robots Hacked . | . . . . Non-combat . | . . . . Combat . | . . . . Robot Hacks Applied . | . . . . Relay Couplers Released . | . . . . Fabnet Peak Effective % . | . . . . Robots Rewired . | . . . . Allies Hacked . | . . . . Hacks Repelled . | . . . . Allies | -11 -10 -10 -10 -------- Run | Yrd Mat Min Sub Total Allies . | . . . . Largest Group . | . . . . Highest-Rated Group . | . . . . Highest-Rated Ally . | . . . . Total Orders . | . . . . Ally Attacks . | . . . . Total Damage . | . . . . Kills . | . . . . Allies Corrupted . | . . . . Allies Melted . | . . . . Intel | -11 -10 -10 -10 ------- Run | Yrd Mat Min Sub Robot Analysis Total . | . . . . Derelict Logs Recovered 1 | . . 1 . Drone Launches . | . . . . Drone Recoveries . | . . . . Exploration | -11 -10 -10 -10 ------------- Run | Yrd Mat Min Sub Turns Passed 2650 | 41 540 2034 35 Spaces Moved 1119 | 37 407 647 28 Core 172 | 13 . 159 . Treads . | . . . . Legs . | . . . . Wheels 947 | 24 407 488 28 Hover . | . . . . Flight . | . . . . Fastest Speed 50 | 50 80 110 110 Average Speed 212 | 69 109 289 110 Slowest Speed 800 | 80 110 800 110 Overloaded Moves . | . . . . Propulsion Burnouts . | . . . . Robots Hopped . | . . . . Cave-ins Triggered . | . . . . Exploration Rate (%) 42 | 3 67 98 3 Regions Visited 3 Branch Regions 2 Pre-discovered Areas . | . . . . Known Exits Taken 1 | . 1 . . Unknown Exits Taken 2 | 1 . 1 . Scrap Searched 2 | . . 1 1 Spaces Dug . | . . . . Terrain Destroyed 78 | . 17 61 . Melee . | . . . . Projectile . | . . . . AOE 78 | . 17 61 . Terrain Rammed . | . . . . Walls Destroyed . | . . . . Machines Disabled . | . . . . Actions | -11 -10 -10 -10 --------- Run | Yrd Mat Min Sub Total 1279 | 53 466 729 31 Wait 24 | . 1 22 1 Move 1116 | 36 406 646 28 Hop . | . . . . Pick Up 37 | 9 22 6 . Fast Attach . | . . . . Attach 12 | 6 2 4 . Detach . | . . . . Swap 1 | . 1 . . Drop 6 | 2 3 . 1 Fire 83 | . 31 51 1 Melee . | . . . . Ram . | . . . . Kick . | . . . . Crush . | . . . . Escape Stasis . | . . . . Rewire . | . . . . Trap . | . . . . Miscellaneous . | . . . . Route ------- -11/Scrapyard -10/Materials (discovered 4 exits: [*Mat x2] / *Min x2) -10/Mines (discovered 4 exits: [*Mat x2] / [*Exi] / [*Sub]) -10/Subcaves (discovered 1 exit: Rec) History --------- Turn | Location | Event 21 | -11/Scrapyard | Discovered new exit (range 16) 42 | -11/Scrapyard | Entered Materials 212 | -10/Materials | Discovered new exit (range 14) 306 | -10/Materials | Build established: Mutant 310 | -10/Materials | Identified exit to Mines 352 | -10/Materials | Discovered new exit (range 15) 582 | -10/Materials | Entered Mines 597 | -10/Mines | Discovered new exit (range 9) 706 | -10/Mines | A weapon hastily lodged in a ceiling crevice suddenly fell to the ground 769 | -10/Mines | Core integrity fell below 50% 902 | -10/Mines | Lost 3 parts (1n2w) 951 | -10/Mines | Deemed a non-threat by the Exiles lab entrance 951 | -10/Mines | Discovered new exit (range 5) 1126 | -10/Mines | Discovered new exit (range 8) 1216 | -10/Mines | Core integrity fell below 20% 2599 | -10/Mines | Discovered new exit (range 12) 2616 | -10/Mines | Entered Subcaves 2617 | -10/Subcaves | Identified exit to Recycling 2646 | -10/Subcaves | Ambushed by Subdwellers from Twisted Machinery 2651 | -10/Subcaves | Destroyed by DH-7T2(h) with Bore Cannon Last Messages --------------- Extracted 20 matter. Acquired Com. Matter Pod. LOCATION=UNKNOWN AMBIENT_HEAT=-10 GOAL=ESCAPE DH-7T2(h): "Hey you don't look like the usual menacing locals. I'm on point searching for advanced tech we've heard is being developed in secret down here, seen anything like that?" Loading 1 Recycling entrance... DH-7T2(h) drops a Scrap Shield: "Protect yourself with this!" Dropped Sml. Laser. Searching scrap... Found Riot Gun. Found 23 Matter. Subatomizers dissect the Riot Gun. Knocked back. Penetrated by HV Slug. Core Shielding destroyed. Map ----- +----------------------------------------------------+ | ?????????????????????????????????????????????????? | | ?????????????????????????????????????????????????? | | ?????????????????????????????????????????????????? | | ?????????????????????????????????????????????????? | | ?????????????????????????????????????????????????? | | ?????????????????????????????????????????????????? | | ?????????????????????????????????????????????????? | | ?????????????????????????????????????????????????? | | ?????????????????????????????????????????????????? | | ?????????????????????????????????????????????????? | | ?????????????????????????????????????????????????? | | ?????????????????????????????????????????????????? | | ?????????????????????????????????????????????????? | | ?????????????????????????????????????????????????? | | ?????????????????????????????????????????????????? | | ?????????????????????????????????????????????????? | | ?????????????????????????????????????????????????? | | ?????????????????????????????????????????????????? | | ???????????????????#?????????????????????????????? | | ???????????????????# ????????????????????????????? | | ???????????????????# ??????###????####??????????? | | ????????????? ????## #?????# ##???# #??????????? | | ????????????? ## ###### #???# #??????????? | | ???????????????""" R ## #??## #??????????? | | ???????????????""" R #### #??????????? | | ????????????????""" " @% h ##?????????? | | ???????????????# ## # # #?????????? | | ???????????????????## " ### #?????????? | | ????????????????????#######?## #?????????? | | ?????????????????????????????#" #?????????? | | ?????????????????????????????#" #?????????? | | ?????????????????????????????# ## #?????????? | | ?????????????????????????????## ### ##?????????? | | ??????????????????????????????## #### #??????????? | | ???????????????????????????????##### #??????????? | | ?????????????????????????????????## %[#??????????? | | ????????????????????????????????## #??????????? | | ????????????????????????????????# ! #??????????? | | ???????????????????????????????## [ #??????????? | | ???????????????????????????????# ##?????????? | | ???????????????????????????????# #?????????? | | ??????????????????????????????# ##?????????? | | ?????????????????????????????# ###??????????? | | ?????????????????????????????### # #???????????? | | ???????????????????????????????## ##???????????? | | ???????????????????????????????? ????????????? | | ??????????????????????????????? ???????????? | | ?????????????????????????????? ???????????? | | ????????????????????????????? ??????????? | | ????????????????????????????? #?????????? | +----------------------------------------------------+ Best States ------------- Heat Dissipation 25 Energy Generation 10 Energy Capacity 250 Matter Stores 300 Matter Capacity 300 Sight Range 16 Terrain Scan Density 10 Core Shielding 20 Evasion (%) 50 Item Schematics ----------------- None Robot Schematics ------------------ None Fabricated ------------ Nothing Alien Tech Used ----------------- None Achievements -------------- None Challenges ------------ None Game ------ Seed CloakingAngularSuperbattery Manual? 0 Play Time 00:14:28 Cumulative 13.0 hours Start 2024.04.07 @ 21:11:00 End 2024.04.07 @ 21:24:35 Sessions 1 Manual Loads 0 Difficulty Rogue Special Mode None Game No. 19 Rogue 19 Adventurer 0 Explorer 0 Win Type - Total 0 Types 0/0/0/0/0/0/0/0/0 Lore% 14 Gallery% 18 Achievement% 14 Wizard Run 0 Options --------- Layout 1 ASCII 0 Keyboard 0 Movement Numpad Keybinds 0 Fullscreen 0 Font 20/SmallcapsGlow Map View 50x35 Zoom Use 0% Tactical HUD 0 Map Filters NONE Filters NONE Steam 1 RUN: 6492a70a-db0e-46e9-be99-6a94e64744a4